fUSD/lending_fUSD_20260404
["ID","MTS","AMOUNT","RATE_DAILY","PERIOD"]
[419662822,1775262658266,-174.61919141,0.00041099,120]
[419662823,1775262658276,-539.24,0.00041099,120]
[419662824,1775262658286,-500.0,0.00041099,120]
[419662825,1775262658295,-181.08010149,0.00041099,120]
[419662826,1775262658305,-181.08010149,0.00041099,120]
[419662827,1775262658315,-559.19188,0.00041099,120]
[419662828,1775262658325,-500.0,0.00041099,120]
[419662829,1775262658336,-181.08010149,0.00041099,120]
[419662830,1775262658346,-187.78006525,0.00041099,120]
[419662831,1775262658356,-579.88197956,0.00041099,120]
[419662832,1775262658366,-500.0,0.00041099,120]
[419662833,1775262658376,-151.0,0.00041099,120]
[419662834,1775262658386,-194.72792766,0.00041099,120]
[419662835,1775262658395,-7681.20591386,0.00041099,120]
[419662836,1775262658405,-500.0,0.00041099,120]
[419662837,1775262658415,-151.0,0.00041099,120]
[419662838,1775262658424,-201.932861,0.00041099,120]
[419662839,1775262658435,-483.46965443,0.00041099,120]
[419662840,1775262658444,-7965.41053268,0.00041099,120]
[419662841,1775262658454,-500.0,0.00041099,120]
[419662842,1775262658464,-151.0,0.00041099,120]
[419662843,1775262658474,-8260.13072239,0.00041099,120]
[419662844,1775262658484,-500.0,0.00041099,120]
[419662845,1775262658494,-151.0,0.00041099,120]
[419662846,1775262658504,-8565.75555911,0.00041099,120]
[419662847,1775262658514,-500.0,0.00041099,120]
[419662848,1775262658523,-151.0,0.00041099,120]
[419662849,1775262658533,-151.0,0.00041099,120]
[419662850,1775262658543,-8882.6885148,0.00041099,120]
[419662851,1775262658553,-500.0,0.00041099,120]
[419662852,1775262658562,-151.0,0.00041099,120]
[419662853,1775262658572,-151.0,0.00041099,120]
[419662854,1775262658581,-9211.34798985,0.00041099,120]
[419662855,1775262658591,-500.0,0.00041099,120]
[419662856,1775262658600,-151.0,0.00041099,120]
[419662857,1775262658610,-200.0,0.00041099,120]
[419662858,1775262658620,-151.0,0.00041099,120]
[419662859,1775262658629,-500.0,0.00041099,120]
[419662860,1775262658638,-500.0,0.00041099,120]
[419662861,1775262658648,-151.0,0.00041099,120]
[419662862,1775262658658,-200.0,0.00041099,120]
[419662863,1775262658667,-151.0,0.00041099,120]
[419662864,1775262658677,-500.0,0.00041099,120]
[419662865,1775262658687,-500.0,0.00041099,120]
[419662866,1775262658697,-151.0,0.00041099,120]
[419662867,1775262658706,-200.0,0.00041099,120]
[419662868,1775262658716,-151.0,0.00041099,120]
[419662869,1775262658726,-500.0,0.00041099,120]
[419662870,1775262658736,-151.0,0.00041099,120]
[419662871,1775262658745,-200.0,0.00041099,120]
[419662872,1775262658755,-151.0,0.00041099,120]
[419662873,1775262658765,-500.0,0.00041099,120]
[419662874,1775262658775,-500.0,0.00041099,120]
[419662875,1775262658784,-151.0,0.00041099,120]
[419662876,1775262658793,-151.0,0.00041099,120]
[419662877,1775262658802,-200.0,0.00041099,120]
[419662878,1775262658811,-151.0,0.00041099,120]
[419662879,1775262658820,-500.0,0.00041099,120]
[419662880,1775262658830,-500.0,0.00041099,120]
[419662881,1775262658840,-500.0,0.00041099,120]
[419662882,1775262658849,-156.587,0.00041099,120]
[419662883,1775262658859,-151.0,0.00041099,120]
[419662884,1775262658868,-200.0,0.00041099,120]
[419662885,1775262658878,-151.0,0.00041099,120]
[419662886,1775262658888,-500.0,0.00041099,120]
[419662887,1775262658898,-500.0,0.00041099,120]
[419662888,1775262658908,-500.0,0.00041099,120]
[419662889,1775262658917,-162.380719,0.00041099,120]
[419662890,1775262658927,-151.0,0.00041099,120]
[419662891,1775262658936,-200.0,0.00041099,120]
[419662892,1775262658946,-151.0,0.00041099,120]
[419662893,1775262658955,-500.0,0.00041099,120]
[419662894,1775262658964,-500.0,0.00041099,120]
[419662895,1775262658973,-500.0,0.00041099,120]
[419662896,1775262658983,-151.0,0.00041099,120]
[419662897,1775262658992,-200.0,0.00041099,120]
[419662898,1775262659002,-151.0,0.00041099,120]
[419662899,1775262659011,-168.3888056,0.00041099,120]
[419662900,1775262659021,-500.0,0.00041099,120]
[419662901,1775262659031,-500.0,0.00041099,120]
[419662902,1775262659040,-500.0,0.00041099,120]
[419662903,1775262659049,-151.0,0.00041099,120]
[419662904,1775262659059,-200.0,0.00041099,120]
[419662905,1775262659069,-151.0,0.00041099,120]
[419662906,1775262659079,-174.61919141,0.00041099,120]
[419662907,1775262659088,-500.0,0.00041099,120]
[419662908,1775262659097,-500.0,0.00041099,120]
[419662909,1775262659107,-151.0,0.00041099,120]
[419662910,1775262659116,-151.0,0.00041099,120]
[419662911,1775262659125,-500.0,0.00041099,120]
[419662912,1775262659135,-181.08010149,0.00041099,120]
[419662913,1775262659144,-500.0,0.00041099,120]
[419662914,1775262659154,-500.0,0.00041099,120]
[419662915,1775262659163,-151.0,0.00041099,120]
[419662916,1775262659173,-151.0,0.00041099,120]
[419662917,1775262659182,-500.0,0.00041099,120]
[419662918,1775262659192,-151.0,0.00041099,120]
[419662919,1775262659202,-500.0,0.00041099,120]
[419662920,1775262659211,-187.78006525,0.00041099,120]
[419662921,1775262659220,-500.0,0.00041099,120]
[419662922,1775262659230,-500.0,0.00041099,120]
[419662923,1775262659629,-151.0,0.00041099,120]
[419662924,1775262659640,-151.0,0.00041099,120]
[419662925,1775262659650,-500.0,0.00041099,120]
[419662926,1775262659659,-294.85507624,0.00041099,120]
[419662927,1775262659669,-500.0,0.00041099,120]
[419662928,1775262659678,-151.0,0.00041099,120]
[419662929,1775262659687,-500.0,0.00041099,120]
[419662930,1775262659696,-500.0,0.00041099,120]
[419662931,1775262659705,-151.0,0.00041099,120]
[419662932,1775262659715,-151.0,0.00041099,120]
[419662933,1775262659724,-151.0,0.00041099,120]
[419662934,1775262659733,-500.0,0.00041099,120]
[419662935,1775262659742,-151.0,0.00041099,120]
[419662936,1775262659751,-151.0,0.00041099,120]
[419662937,1775262659760,-500.0,0.00041099,120]
[419662938,1775262659769,-500.0,0.00041099,120]
[419662939,1775262659779,-151.0,0.00041099,120]
[419662940,1775262659788,-151.0,0.00041099,120]
[419662941,1775262659797,-500.0,0.00041099,120]
[419662942,1775262659806,-500.0,0.00041099,120]
[419662943,1775262659815,-151.0,0.00041099,120]
[419662944,1775262659824,-151.0,0.00041099,120]
[419662945,1775262659834,-500.0,0.00041099,120]
[419662946,1775262659843,-500.0,0.00041099,120]
[419662947,1775262659852,-2000.0,0.00041099,120]
[419662948,1775262659862,-500.0,0.00041099,120]
[419662949,1775262659871,-151.0,0.00041099,120]
[419662950,1775262659880,-151.0,0.00041099,120]
[419662951,1775262659889,-500.0,0.00041099,120]
[419662952,1775262659899,-2000.0,0.00041099,120]
[419662953,1775262659908,-500.0,0.00041099,120]
[419662954,1775262659918,-500.0,0.00041099,120]
[419662955,1775262659927,-170.0,0.00041099,120]
[419662956,1775262659936,-151.0,0.00041099,120]
[419662957,1775262659945,-500.0,0.00041099,120]
[419662958,1775262659954,-500.0,0.00041099,120]
[419662959,1775262659964,-500.0,0.00041099,120]
[419662960,1775262659972,-170.0,0.00041099,120]
[419662961,1775262659982,-151.0,0.00041099,120]
[419662962,1775262659991,-500.0,0.00041099,120]
[419662963,1775262660000,-500.0,0.00041099,120]
[419662964,1775262660009,-500.0,0.00041099,120]
[419662965,1775262660020,-170.0,0.00041099,120]
[419662966,1775262660029,-159.07847701,0.00041099,120]
[419662967,1775262660039,-500.0,0.00041099,120]
[419662968,1775262660048,-500.0,0.00041099,120]
[419662969,1775262660058,-170.0,0.00041099,120]
[419662970,1775262660068,-500.0,0.00041099,120]
[419662971,1775262660078,-500.0,0.00041099,120]
[419662972,1775262660087,-170.0,0.00041099,120]
[419662973,1775262660096,-500.0,0.00041099,120]
[419662974,1775262660106,-500.0,0.00041099,120]
[419662975,1775262660115,-500.0,0.00041099,120]
[419662976,1775262660124,-500.0,0.00041099,120]
[419662977,1775262660134,-170.0,0.00041099,120]
[419662978,1775262660143,-500.0,0.00041099,120]
[419662979,1775262660153,-500.0,0.00041099,120]
[419662980,1775262660162,-500.0,0.00041099,120]
[419662981,1775262660171,-170.0,0.00041099,120]
[419662982,1775262660180,-500.0,0.00041099,120]
[419662983,1775262660189,-500.0,0.00041099,120]
[419662984,1775262660199,-500.0,0.00041099,120]
[419662985,1775262660208,-500.0,0.00041099,120]
[419662986,1775262660217,-170.0,0.00041099,120]
[419662987,1775262660226,-500.0,0.00041099,120]
[419662988,1775262660237,-500.0,0.00041099,120]
[419662989,1775262660247,-500.0,0.00041099,120]
[419662990,1775262660256,-500.0,0.00041099,120]
[419662991,1775262660265,-155.70741883,0.00041099,120]
[419662992,1775262660274,-170.0,0.00041099,120]
[419662993,1775262660284,-500.0,0.00041099,120]
[419662994,1775262660294,-500.0,0.00041099,120]
[419662995,1775262660303,-500.0,0.00041099,120]
[419662996,1775262660312,-500.0,0.00041099,120]
[419662997,1775262660322,-500.0,0.00041099,120]
[419662998,1775262660331,-500.0,0.00041099,120]
[419662999,1775262660341,-500.0,0.00041099,120]
[419663000,1775262660350,-500.0,0.00041099,120]
[419663001,1775262660360,-500.0,0.00041099,120]
[419663002,1775262660369,-500.0,0.00041099,120]
[419663003,1775262660379,-500.0,0.00041099,120]
[419663004,1775262660389,-500.0,0.00041099,120]
[419663005,1775262660401,-518.5,0.00041099,120]
[419663006,1775262660410,-500.0,0.00041099,120]
[419663007,1775262660419,-745.44712084,0.00041099,120]
[419663008,1775262660429,-500.0,0.00041099,120]
[419663009,1775262660439,-500.0,0.00041099,120]
[419663010,1775262660448,-537.6845,0.00041099,120]
[419663011,1775262660458,-500.0,0.00041099,120]
[419663012,1775262660467,-500.0,0.00041099,120]
[419663013,1775262660477,-500.0,0.00041099,120]
[419663014,1775262660486,-557.5788265,0.00041099,120]
[419663015,1775262660495,-500.0,0.00041099,120]
[419663016,1775262660505,-500.0,0.00041099,120]
[419663017,1775262660515,-500.0,0.00041099,120]
[419663018,1775262660524,-500.0,0.00041099,120]
[419663019,1775262660533,-500.0,0.00041099,120]
[419663020,1775262660543,-500.0,0.00041099,120]
[419663021,1775262660552,-500.0,0.00041099,120]
[419663022,1775262660561,-500.0,0.00041099,120]
[419663023,1775262660570,-500.0,0.00041099,120]
[419663024,1775262660579,-500.0,0.00041099,120]
[419663025,1775262660588,-151.0,0.00041099,120]
[419663026,1775262660598,-500.0,0.00041099,120]
[419663027,1775262660607,-500.0,0.00041099,120]
[419663028,1775262660616,-445.68725848,0.00041099,120]
[419663029,1775262660625,-156.587,0.00041099,120]
[419663030,1775262660634,-500.0,0.00041099,120]
[419663031,1775262660643,-500.0,0.00041099,120]
[419663032,1775262660654,-162.380719,0.00041099,120]
[419663033,1775262660663,-250.0,0.00041099,120]
[419663034,1775262660672,-798.96248601,0.000411,31]
[419663035,1775262660682,-170350.64210721,0.000411,7]
[419663036,1775262660691,-3157118.72174142,0.000411,120]
[419663037,1775262660702,-378065.76666187,0.000411,120]
[419663038,1775262661223,-3829.97459628,0.000411,120]
[419663039,1775262661396,-168.3888056,0.00041099,120]
[419663040,1775262661405,-105885.37688962,0.000411,120]
[419663041,1775262662899,-525.0,0.00039724,30]
[419663042,1775262662908,-419.0,0.00039724,30]
[419663043,1775262662918,-36.85,0.00041099,120]
[419663044,1775262663183,-213.15,0.00041099,120]
[419663045,1775262663202,-174.61919141,0.00041099,120]
[419663046,1775262663212,-250.0,0.00041099,120]
[419663047,1775262663222,-259.35462129,0.00041099,120]
[419663048,1775262663231,-250.0,0.00041099,120]
[419663049,1775262663241,-250.0,0.00041099,120]
[419663050,1775262663252,-250.0,0.00041099,120]
[419663051,1775262663262,-1030.0,0.00041099,120]
[419663052,1775262663272,-250.0,0.00041099,120]
[419663053,1775262663281,-347.42282659,0.00041099,120]
[419663054,1775262663291,-250.0,0.00041099,120]
[419663055,1775262663300,-250.0,0.00041099,120]
[419663056,1775262663310,-127174.35625896,0.000411,120]
[419663057,1775262663327,-125193.0202335,0.000411,120]
[419663060,1775262700815,150.0,0.000141,120]
[419663061,1775262794810,10000.01,0.0001073,2]
[419663062,1775262794836,10000.01,0.0001073,2]
[419663063,1775262802996,-9795.72187754,0.0001073,2]
[419663064,1775262803096,-10000.01,0.0001073,2]
[419663067,1775262828716,160.0,6.425e-05,2]
[419663068,1775262828800,154.0,6.425e-05,2]
[419663069,1775262828976,154.0,6.425e-05,2]
[419663070,1775262829173,154.0,6.425e-05,2]
[419663071,1775262829425,154.0,6.425e-05,2]
[419663072,1775262829841,154.0,6.425e-05,2]
[419663073,1775262829919,154.0,6.425e-05,2]
[419663074,1775262830174,154.0,6.425e-05,2]
[419663075,1775262830422,154.0,6.425e-05,2]
[419663076,1775262830679,154.0,6.425e-05,2]
[419663077,1775262830926,154.0,6.425e-05,2]
[419663078,1775262836738,-400.0,0.000105,3]
[419663079,1775262847677,1010.726839,7.945e-05,2]
[419663080,1775262852363,-900.0,0.000106,3]
[419663081,1775262852393,-1400.0,0.000107,3]
[419663082,1775262852420,-895.0,0.00010728,2]
[419663083,1775262852448,-300.0,0.00010728,2]
[419663084,1775262852546,-3317.33709134,0.00010729,2]
[419663085,1775262852602,-3756.28800429,0.00010729,2]
[419663086,1775262852712,-2487.43399142,0.00010729,2]
[419663087,1775262852876,-5364.61897832,0.0001073,2]
[419663088,1775262852916,-2487.43399142,0.0001073,2]
[419663089,1775262852940,-5025.14201716,0.0001073,2]
[419663090,1775262852981,-10000.01,0.0001073,2]
[419663091,1775262853044,-10000.01,0.0001073,2]
[419663092,1775262853063,-10000.01,0.0001073,2]
[419663093,1775262853103,-10000.01,0.0001073,2]
[419663094,1775262853142,-10000.01,0.0001073,2]
[419663095,1775262854810,-151.0,0.00010727,2]
[419663096,1775262854840,-151.0,0.00010727,2]
[419663097,1775262854909,-9396.01,0.0001073,2]
[419663098,1775262854945,-10000.01,0.0001073,2]
[419663099,1775262857877,-151.0,0.00010727,2]
[419663100,1775262857916,-9698.01,0.0001073,2]
[419663101,1775262857987,-10000.01,0.0001073,2]
[419663102,1775262858103,-10000.01,0.0001073,2]
[419663103,1775262858220,-10000.01,0.0001073,2]
[419663104,1775262858334,-10000.01,0.0001073,2]
[419663105,1775262858439,-10000.01,0.0001073,2]
[419663106,1775262858550,-10000.01,0.0001073,2]
[419663107,1775262861012,-10000.01,0.0001073,2]
[419663108,1775262861195,-10000.01,0.0001073,2]
[419663109,1775262861383,-10000.01,0.0001073,2]
[419663110,1775262866915,-10000.01,0.0001073,2]
[419663111,1775262867031,-10000.01,0.0001073,2]
[419663112,1775262867124,-10000.01,0.0001073,2]
[419663113,1775262867241,-10000.01,0.0001073,2]
[419663114,1775262867366,-10000.01,0.0001073,2]
[419663115,1775262867456,-10000.01,0.0001073,2]
[419663116,1775262867558,-10000.01,0.0001073,2]
[419663117,1775262965543,1844.34,5.478e-05,2]
[419663118,1775262965597,1844.34,5.766e-05,2]
[419663119,1775262965682,1844.34,6.054e-05,2]
[419663120,1775262965804,1844.34,6.343e-05,2]
[419663121,1775262965846,1844.34,6.631e-05,2]
[419663122,1775262965965,778.31,6.919e-05,2]
[419663123,1775262965988,1066.03,6.919e-05,2]
[419663124,1775262966169,1844.34,7.207e-05,2]
[419663125,1775262966573,1844.34,7.496e-05,2]
[419663126,1775262966934,245.3,7.784e-05,2]
[419663127,1775262966962,1599.04,7.784e-05,2]
[419663128,1775262967124,1844.34,8.072e-05,2]
[419663129,1775262967335,1556.63,8.361e-05,2]
[419663130,1775262970605,-287.71,8.361e-05,2]
[419663131,1775262970642,-1844.34,8.649e-05,2]
[419663132,1775262970679,-1844.34,8.937e-05,2]
[419663133,1775262970714,-202.89,9.226e-05,2]
[419663134,1775262970787,-1641.45,9.226e-05,2]
[419663135,1775262973997,-1844.34,9.514e-05,2]
[419663138,1775263161594,150.0,0.00011233,120]
[419663140,1775263230058,9700.02,9.698e-05,2]
[419663141,1775263540124,-186.96179244,9.747e-05,2]
[419663142,1775263593772,-1200.0,9.747e-05,2]
[419663143,1775263593800,-300.0,9.747e-05,2]
[419663144,1775263593830,-300.0,9.747e-05,2]
[419663145,1775263593859,-300.0,9.747e-05,2]
[419663146,1775263593887,-290.0,9.747e-05,2]
[419663147,1775263604546,-518.43,9.748e-05,2]
[419663148,1775263604660,-1036.86,9.748e-05,2]
[419663149,1775263604793,-2073.72,9.748e-05,2]
[419663150,1775263604845,-4147.44,9.748e-05,2]
[419663151,1775263604991,-1705.13,9.748e-05,2]
[419663152,1775263632130,-250.0,9.76e-05,2]
[419663153,1775263632160,-610.02584835,9.76e-05,2]
[419663154,1775263634737,204.33,9.753e-05,2]
[419663155,1775263637121,-1876.19748066,9.76e-05,2]
[419663156,1775263637150,-213.77083829,9.76e-05,2]
[419663157,1775263637179,-250.0,9.783e-05,2]
[419663158,1775263637207,-598.69356774,9.798e-05,2]
[419663159,1775263646116,-6391.60921507,9.798e-05,2]
[419663160,1775263649461,4751.1,9.743e-05,2]
[419663161,1775263650400,-448.12721719,9.798e-05,2]
[419663162,1775263665701,-1844.34,9.802e-05,2]
[419663163,1775263680880,-1844.34,0.0001009,2]
[419663164,1775263696101,-204.33,0.00010294,2]
[419663165,1775263711229,-250.0,0.00010337,2]
[419663166,1775263726658,-1844.34,0.00010379,2]
[419663167,1775263741788,-250.0,0.00010444,2]
[419663168,1775263749112,-300.0,0.00010474,2]
[419663169,1775263749133,-300.0,0.00010474,2]
[419663170,1775263749154,-5501.12,0.00010474,2]
[419663171,1775263749176,-250.0,0.00010475,2]
[419663172,1775263749198,-150.99,0.00010475,2]
[419663173,1775263749220,-9999.99,0.00010475,2]
[419663174,1775263749241,-299.99,0.00010475,2]
[419663175,1775263749262,-2412.67,0.00010475,2]
[419663176,1775263749283,-150.0,0.00010599,2]
[419663177,1775263749305,-300.0,0.000106,3]
[419663178,1775263749324,-213.77083829,0.00010625,2]
[419663179,1775263749344,-4374.587,0.00010629,2]
[419663180,1775263749368,-17208.98578171,0.00010629,2]
[419663181,1775263758072,-22472.40744,0.00010629,2]
[419663182,1775263772084,-25288.35531048,0.00010629,2]
[419663183,1775263801187,882.0,0.00010628,2]
[419663184,1775263817774,9118.01,9.97e-05,2]
[419663185,1775263817799,10000.01,9.97e-05,2]
[419663186,1775263817825,10000.01,9.97e-05,2]
[419663187,1775263817849,8678.08,9.97e-05,2]
[419663188,1775263831747,-1770.0,0.00010629,2]
[419663189,1775263831799,-385.00293256,0.00010629,2]
[419663190,1775263831810,-38447.24044898,0.00010629,2]
[419663191,1775263831820,-523.48447467,0.00010629,2]
[419663192,1775263831853,-685.86632813,0.00010629,2]
[419663193,1775263831864,-971.72153587,0.00010629,2]
[419663194,1775263831875,-636.77253227,0.00010629,2]
[419663195,1775263831907,-10939.85121338,0.00010629,2]
[419663196,1775263831919,-303.8818997,0.00010629,2]
[419663197,1775263831970,-3200.41564869,0.00010629,2]
[419663199,1775263837948,-5702.07042462,0.00010629,2]
[419663200,1775263837959,-307.92957538,0.00010629,2]
[419663201,1775263839289,500.0,0.000106,3]
[419663202,1775263840782,-145139.85245356,0.00010629,2]
[419663203,1775263840794,-2500.0,0.0001063,2]
[419663204,1775263840803,-2741.201,0.0001063,2]
[419663205,1775263840812,-5147.82773703,0.00010648,2]
[419663206,1775263840824,-182.38225925,0.00010648,2]
[419663207,1775263840834,-199.99872897,0.00010648,2]
[419663208,1775263840845,-1844.34,0.00010667,2]
[419663209,1775263840854,-700.0,0.000107,3]
[419663210,1775263840863,-236.19407928,0.0001072,2]
[419663211,1775263840873,-500.0,0.00010723,2]
[419663212,1775263840882,-3362.425,0.00010725,2]
[419663213,1775263840892,-178.035,0.00010725,2]
[419663214,1775263840901,-1060.28336308,0.00010729,3]
[419663215,1775263840910,-500.0,0.00010729,2]
[419663216,1775263840920,-563.8325216,0.00010729,2]
[419663217,1775263840929,-272.89659974,0.00010729,2]
[419663218,1775263840939,-500.0,0.00010729,2]
[419663219,1775263840948,-610.6291126,0.00010729,2]
[419663220,1775263840957,-500.0,0.00010729,2]
[419663221,1775263840967,-500.0,0.00010729,2]
[419663222,1775263840976,-622.67819877,0.00010729,2]
[419663223,1775263840985,-390.78030869,0.00010729,2]
[419663224,1775263840996,-500.0,0.00010729,2]
[419663225,1775263841005,-500.0,0.00010729,2]
[419663226,1775263841014,-500.0,0.00010729,2]
[419663227,1775263841025,-500.0,0.00010729,2]
[419663228,1775263841036,-500.0,0.00010729,2]
[419663229,1775263841046,-500.0,0.00010729,2]
[419663230,1775263841055,-500.0,0.00010729,2]
[419663231,1775263841064,-500.0,0.00010729,2]
[419663232,1775263841074,-500.0,0.00010729,2]
[419663233,1775263841083,-361.12479056,0.00010729,2]
[419663234,1775263841092,-500.0,0.00010729,2]
[419663235,1775263841102,-500.0,0.00010729,2]
[419663236,1775263841111,-500.0,0.00010729,2]
[419663237,1775263841120,-500.0,0.00010729,2]
[419663238,1775263841131,-500.0,0.00010729,2]
[419663239,1775263841140,-500.0,0.00010729,2]
[419663240,1775263841149,-500.0,0.00010729,2]
[419663241,1775263841158,-228.32445712,0.00010729,2]
[419663242,1775263841167,-500.0,0.00010729,2]
[419663243,1775263841176,-180.48159571,0.00010729,2]
[419663244,1775263841185,-500.0,0.00010729,2]
[419663245,1775263841195,-500.0,0.00010729,2]
[419663246,1775263841209,-500.0,0.00010729,2]
[419663247,1775263841220,-500.0,0.00010729,2]
[419663248,1775263841230,-203.7321989,0.00010729,2]
[419663249,1775263841241,-500.0,0.00010729,2]
[419663250,1775263841251,-500.0,0.00010729,2]
[419663251,1775263841260,-500.0,0.00010729,2]
[419663252,1775263841270,-500.0,0.00010729,2]
[419663253,1775263841281,-500.0,0.00010729,2]
[419663254,1775263841291,-500.0,0.00010729,2]
[419663255,1775263841302,-500.0,0.00010729,2]
[419663256,1775263841312,-500.0,0.00010729,2]
[419663257,1775263841322,-500.0,0.00010729,2]
[419663258,1775263841332,-500.0,0.00010729,2]
[419663259,1775263841343,-500.0,0.00010729,2]
[419663260,1775263841354,-562.77038296,0.00010729,2]
[419663261,1775263841364,-500.0,0.00010729,2]
[419663262,1775263841375,-500.0,0.00010729,2]
[419663263,1775263841384,-500.0,0.00010729,2]
[419663264,1775263841394,-500.0,0.00010729,2]
[419663265,1775263841404,-500.0,0.00010729,2]
[419663266,1775263841414,-500.0,0.00010729,2]
[419663267,1775263841423,-500.0,0.00010729,2]
[419663268,1775263841433,-500.0,0.00010729,2]
[419663269,1775263841443,-500.0,0.00010729,2]
[419663270,1775263841452,-500.0,0.00010729,2]
[419663271,1775263841462,-500.0,0.00010729,2]
[419663272,1775263841472,-500.0,0.00010729,2]
[419663273,1775263841482,-500.0,0.00010729,2]
[419663274,1775263841492,-500.0,0.00010729,2]
[419663275,1775263841501,-500.0,0.00010729,2]
[419663276,1775263841511,-500.0,0.00010729,2]
[419663277,1775263841520,-335.22341881,0.00010729,2]
[419663278,1775263841529,-500.0,0.00010729,2]
[419663279,1775263841539,-500.0,0.00010729,2]
[419663280,1775263841548,-500.0,0.00010729,2]
[419663281,1775263841559,-500.0,0.00010729,2]
[419663282,1775263841569,-500.0,0.00010729,2]
[419663283,1775263841579,-500.0,0.00010729,2]
[419663284,1775263841590,-500.0,0.00010729,2]
[419663285,1775263841600,-500.0,0.00010729,2]
[419663286,1775263841611,-500.0,0.00010729,2]
[419663287,1775263841623,-500.0,0.00010729,2]
[419663288,1775263841633,-500.0,0.00010729,2]
[419663289,1775263841645,-500.0,0.00010729,2]
[419663290,1775263841655,-500.0,0.00010729,2]
[419663291,1775263841665,-500.0,0.00010729,2]
[419663292,1775263841677,-500.0,0.00010729,2]
[419663293,1775263841687,-500.12556099,0.00010729,2]
[419663294,1775263841698,-530.90433384,0.00010729,2]
[419663295,1775263841714,-851.3961589,0.00010729,2]
[419663296,1775263841724,-851.3961589,0.00010729,2]
[419663297,1775263841734,-851.3961589,0.00010729,2]
[419663298,1775263841744,-851.3961589,0.00010729,2]
[419663299,1775263841754,-851.3961589,0.00010729,2]
[419663300,1775263841764,-851.3961589,0.00010729,2]
[419663301,1775263841774,-851.3961589,0.00010729,2]
[419663302,1775263841783,-851.3961589,0.00010729,2]
[419663303,1775263841793,-851.3961589,0.00010729,2]
[419663304,1775263841802,-851.3961589,0.00010729,2]
[419663305,1775263841812,-851.3961589,0.00010729,2]
[419663306,1775263841821,-851.3961589,0.00010729,2]
[419663307,1775263841831,-851.3961589,0.00010729,2]
[419663308,1775263841840,-851.3961589,0.00010729,2]
[419663309,1775263841850,-851.3961589,0.00010729,2]
[419663310,1775263841860,-851.3961589,0.00010729,2]
[419663311,1775263841870,-851.3961589,0.00010729,2]
[419663312,1775263841880,-851.3961589,0.00010729,2]
[419663313,1775263841890,-851.3961589,0.00010729,2]
[419663314,1775263841900,-851.3961589,0.00010729,2]
[419663315,1775263841909,-851.3961589,0.00010729,2]
[419663316,1775263841919,-851.3961589,0.00010729,2]
[419663317,1775263841928,-851.3961589,0.00010729,2]
[419663318,1775263841938,-851.3961589,0.00010729,2]
[419663319,1775263841947,-851.3961589,0.00010729,2]
[419663320,1775263841956,-851.3961589,0.00010729,2]
[419663321,1775263841966,-851.3961589,0.00010729,2]
[419663322,1775263841976,-851.3961589,0.00010729,2]
[419663323,1775263841985,-851.3961589,0.00010729,2]
[419663324,1775263841995,-851.3961589,0.00010729,2]
[419663325,1775263842004,-851.3961589,0.00010729,2]
[419663326,1775263842014,-851.3961589,0.00010729,2]
[419663327,1775263842024,-851.3961589,0.00010729,2]
[419663328,1775263842033,-851.3961589,0.00010729,2]
[419663329,1775263842044,-851.3961589,0.00010729,2]